[Event "Titled Tuesday Blitz August 22 Early 2023"]
[White "pasteta13"]
[Black "Floresvillar Gonzalez, Luis Migu"]
[BlackFideId "5100542"]
[WhiteElo "2386"]
[BlackElo "2130"]
[Result "1-0"]
[Round "5"]
[TimeControl "180+1"]
[Date "2023.08.22"]
[WhiteClock "0:00:28"]
[BlackClock "0:00:00"]
[Board "213"]

1. e4 {[%clk 0:02:57]}  c6 {[%clk 0:02:58]} 2. Nf3 {[%clk 0:02:56]}  d5 {[%clk 0:02:58]} 3. exd5 {[%clk 0:02:56]}  cxd5 {[%clk 0:02:58]} 4. d4 {[%clk 0:02:57]}  Nc6 {[%clk 0:02:58]} 5. c4 {[%clk 0:02:57]}  Nf6 {[%clk 0:02:56]} 6. Nc3 {[%clk 0:02:56]}  dxc4 {[%clk 0:02:47]} 7. Bxc4 {[%clk 0:02:56]}  Bg4 {[%clk 0:02:46]} 8. d5 {[%clk 0:02:50]}  Bxf3 {[%clk 0:02:23]} 9. Qxf3 {[%clk 0:02:48]}  Ne5 {[%clk 0:02:22]} 10. Bb5+ {[%clk 0:02:44]}  Ned7 {[%clk 0:02:17]} 11. O-O {[%clk 0:02:35]}  a6 {[%clk 0:02:17]} 12. Ba4 {[%clk 0:02:31]}  b5 {[%clk 0:02:16]} 13. Nxb5 {[%clk 0:02:19]}  axb5 {[%clk 0:02:14]} 14. Bxb5 {[%clk 0:02:20]}  Rb8 {[%clk 0:02:08]} 15. Bc6 {[%clk 0:02:14]}  g6 {[%clk 0:02:07]} 16. Bf4 {[%clk 0:02:03]}  Bg7 {[%clk 0:02:07]} 17. Bxb8 {[%clk 0:02:02]}  Qxb8 {[%clk 0:02:07]} 18. d6 {[%clk 0:01:32]}  Qxd6 {[%clk 0:01:53]} 19. Rfd1 {[%clk 0:01:20]}  Qc7 {[%clk 0:01:31]} 20. Rac1 {[%clk 0:01:14]}  O-O {[%clk 0:00:55]} 21. Bxd7 {[%clk 0:01:11]}  Qa5 {[%clk 0:00:39]} 22. Qa3 {[%clk 0:01:06]}  Qh5 {[%clk 0:00:30]} 23. Qxe7 {[%clk 0:01:05]}  Nxd7 {[%clk 0:00:27]} 24. Rxd7 {[%clk 0:00:55]}  Be5 {[%clk 0:00:26]} 25. g3 {[%clk 0:00:47]}  Bxb2 {[%clk 0:00:25]} 26. Rd8 {[%clk 0:00:39]}  Rxd8 {[%clk 0:00:19]} 27. Qxd8+ {[%clk 0:00:40]}  Kg7 {[%clk 0:00:19]} 28. Rc8 {[%clk 0:00:40]}  Kh6 {[%clk 0:00:13]} 29. Qd2+ {[%clk 0:00:39]}  g5 {[%clk 0:00:09]} 30. Rc6+ {[%clk 0:00:36]}  f6 {[%clk 0:00:07]} 31. h4 {[%clk 0:00:28]}  Be5 {[%clk 0:00:06]} 32. hxg5+ {[%clk 0:00:28]}  Qxg5 {[%clk 0:00:06]} 33. Qxg5+ {[%clk 0:00:28]}  Kxg5 {[%clk 0:00:06]} 34. f4+ {[%clk 0:00:27]}  Kg4 {[%clk 0:00:06]} 35. fxe5 {[%clk 0:00:28]}  fxe5 {[%clk 0:00:06]} 36. a4 {[%clk 0:00:27]}  e4 {[%clk 0:00:07]} 37. a5 {[%clk 0:00:28]}  Kf3 {[%clk 0:00:06]} 38. a6 {[%clk 0:00:28]}  e3 {[%clk 0:00:06]} 39. a7 {[%clk 0:00:29]}  e2 {[%clk 0:00:07]} 40. Rc3+ {[%clk 0:00:28]}  Kg4 {[%clk 0:00:04]} 41. Kf2 {[%clk 0:00:28]}  h5 {[%clk 0:00:00]} 42. a8=Q {[%clk 0:00:28]} 1-0


[Site "https://www.chess.com"]

[Event "Titled Tuesday Blitz August 22 Early 2023"]
[White "Yuruultei Batbaatar"]
[Black "Seifert, Henryk"]
[WhiteFideId "4905962"]
[BlackFideId "1100963"]
[WhiteElo "2383"]
[BlackElo "2123"]
[Result "1-0"]
[Round "5"]
[TimeControl "180+1"]
[Date "2023.08.22"]
[WhiteClock "0:01:58"]
[BlackClock "0:00:00"]
[Board "214"]

1. d4 {[%clk 0:03:00]}  d5 {[%clk 0:02:59]} 2. c4 {[%clk 0:03:01]}  c6 {[%clk 0:02:59]} 3. Nf3 {[%clk 0:03:00]}  e6 {[%clk 0:02:57]} 4. Qc2 {[%clk 0:03:00]}  Nf6 {[%clk 0:02:55]} 5. Nbd2 {[%clk 0:03:01]}  Nbd7 {[%clk 0:02:53]} 6. g3 {[%clk 0:03:01]}  Be7 {[%clk 0:02:51]} 7. Bg2 {[%clk 0:03:02]}  O-O {[%clk 0:02:51]} 8. O-O {[%clk 0:03:02]}  b6 {[%clk 0:02:47]} 9. Rd1 {[%clk 0:03:03]}  Bb7 {[%clk 0:02:46]} 10. e4 {[%clk 0:03:03]}  dxe4 {[%clk 0:02:44]} 11. Nxe4 {[%clk 0:03:04]}  c5 {[%clk 0:02:36]} 12. Nxf6+ {[%clk 0:02:59]}  Bxf6 {[%clk 0:02:30]} 13. dxc5 {[%clk 0:02:55]}  bxc5 {[%clk 0:02:29]} 14. Ng5 {[%clk 0:02:54]}  Bxg5 {[%clk 0:02:09]} 15. Bxb7 {[%clk 0:02:52]}  Bxc1 {[%clk 0:01:44]} 16. Bxa8 {[%clk 0:02:34]}  Qxa8 {[%clk 0:01:41]} 17. Rxd7 {[%clk 0:02:31]}  Bg5 {[%clk 0:01:36]} 18. Rad1 {[%clk 0:02:29]}  Bf6 {[%clk 0:01:34]} 19. b3 {[%clk 0:02:28]}  g6 {[%clk 0:01:26]} 20. Qd2 {[%clk 0:02:21]}  Kg7 {[%clk 0:00:54]} 21. Qa5 {[%clk 0:02:15]}  Bd4 {[%clk 0:00:47]} 22. Qxa7 {[%clk 0:02:11]}  Qf3 {[%clk 0:00:46]} 23. R7xd4 {[%clk 0:02:10]}  cxd4 {[%clk 0:00:42]} 24. Qxd4+ {[%clk 0:02:11]}  Kg8 {[%clk 0:00:27]} 25. c5 {[%clk 0:02:10]}  e5 {[%clk 0:00:24]} 26. Qd3 {[%clk 0:02:07]}  Qc6 {[%clk 0:00:20]} 27. b4 {[%clk 0:02:02]}  Ra8 {[%clk 0:00:14]} 28. Qd5 {[%clk 0:01:59]}  Qf6 {[%clk 0:00:00]} 29. Qxa8+ {[%clk 0:01:58]} 1-0


[Site "https://www.chess.com"]

[Event "Titled Tuesday Blitz August 22 Early 2023"]
[White "Hartikainen, Jarmo"]
[Black "rikchessmx"]
[WhiteFideId "503134"]
[WhiteElo "2108"]
[BlackElo "2381"]
[Result "0-1"]
[Round "5"]
[TimeControl "180+1"]
[Date "2023.08.22"]
[WhiteClock "0:00:17"]
[BlackClock "0:02:17"]
[Board "215"]

1. e4 {[%clk 0:03:00]}  c5 {[%clk 0:02:55]} 2. c3 {[%clk 0:03:00]}  d5 {[%clk 0:02:50]} 3. exd5 {[%clk 0:03:00]}  Qxd5 {[%clk 0:02:51]} 4. d4 {[%clk 0:03:00]}  cxd4 {[%clk 0:02:52]} 5. cxd4 {[%clk 0:03:00]}  Nc6 {[%clk 0:02:52]} 6. Nf3 {[%clk 0:02:59]}  Bg4 {[%clk 0:02:52]} 7. Nc3 {[%clk 0:02:59]}  Qh5 {[%clk 0:02:44]} 8. Be2 {[%clk 0:02:55]}  e6 {[%clk 0:02:42]} 9. O-O {[%clk 0:02:48]}  Bd6 {[%clk 0:02:40]} 10. Nb5 {[%clk 0:02:09]}  Bxh2+ {[%clk 0:02:35]} 11. Nxh2 {[%clk 0:02:02]}  Bxe2 {[%clk 0:02:35]} 12. Qa4 {[%clk 0:01:50]}  Qxb5 {[%clk 0:02:33]} 13. Qxb5 {[%clk 0:01:43]}  Bxb5 {[%clk 0:02:32]} 14. Rd1 {[%clk 0:01:43]}  O-O-O {[%clk 0:02:32]} 15. Nf3 {[%clk 0:01:43]}  Nf6 {[%clk 0:02:31]} 16. Be3 {[%clk 0:01:42]}  Rd7 {[%clk 0:02:31]} 17. Rdc1 {[%clk 0:01:40]}  Kb8 {[%clk 0:02:31]} 18. a4 {[%clk 0:01:33]}  Be2 {[%clk 0:02:31]} 19. a5 {[%clk 0:01:33]}  Bxf3 {[%clk 0:02:30]} 20. gxf3 {[%clk 0:01:33]}  a6 {[%clk 0:02:30]} 21. Rc4 {[%clk 0:01:29]}  Nd5 {[%clk 0:02:27]} 22. b4 {[%clk 0:01:15]}  Ncxb4 {[%clk 0:02:23]} 23. Rb1 {[%clk 0:01:13]}  Nxe3 {[%clk 0:02:22]} 24. fxe3 {[%clk 0:01:03]}  Nd5 {[%clk 0:02:21]} 25. e4 {[%clk 0:00:54]}  Nf6 {[%clk 0:02:21]} 26. Rcb4 {[%clk 0:00:50]}  Rc8 {[%clk 0:02:19]} 27. Kf2 {[%clk 0:00:38]}  Rc3 {[%clk 0:02:17]} 28. R1b2 {[%clk 0:00:17]}  Ra3 {[%clk 0:02:17]} 0-1


[Site "https://www.chess.com"]

[Event "Titled Tuesday Blitz August 22 Early 2023"]
[White "Kozelov, Roman"]
[Black "Zepeda Berlanga, Jan Enrique"]
[WhiteFideId "14133377"]
[BlackFideId "5132355"]
[WhiteElo "2375"]
[BlackElo "1998"]
[Result "1-0"]
[Round "5"]
[TimeControl "180+1"]
[Date "2023.08.22"]
[WhiteClock "0:02:09"]
[BlackClock "0:00:39"]
[Board "217"]

1. e4 {[%clk 0:02:56]}  c5 {[%clk 0:03:00]} 2. Nf3 {[%clk 0:02:55]}  d6 {[%clk 0:02:59]} 3. Bb5+ {[%clk 0:02:56]}  Bd7 {[%clk 0:02:59]} 4. a4 {[%clk 0:02:56]}  Nf6 {[%clk 0:02:55]} 5. Nc3 {[%clk 0:02:56]}  Nc6 {[%clk 0:02:54]} 6. O-O {[%clk 0:02:55]}  e6 {[%clk 0:02:50]} 7. d4 {[%clk 0:02:54]}  cxd4 {[%clk 0:02:49]} 8. Nxd4 {[%clk 0:02:55]}  Be7 {[%clk 0:02:44]} 9. Be3 {[%clk 0:02:55]}  O-O {[%clk 0:02:37]} 10. f4 {[%clk 0:02:55]}  a6 {[%clk 0:02:35]} 11. Be2 {[%clk 0:02:53]}  Qb6 {[%clk 0:02:17]} 12. Rf3 {[%clk 0:02:48]}  Ng4 {[%clk 0:02:10]} 13. Nxc6 {[%clk 0:02:42]}  Qxc6 {[%clk 0:02:10]} 14. Bd4 {[%clk 0:02:29]}  e5 {[%clk 0:02:07]} 15. Nd5 {[%clk 0:02:28]}  Bd8 {[%clk 0:01:58]} 16. Rg3 {[%clk 0:02:21]}  Bh4 {[%clk 0:01:50]} 17. Bxg4 {[%clk 0:02:16]}  exd4 {[%clk 0:01:22]} 18. Qxd4 {[%clk 0:02:13]}  Rfe8 {[%clk 0:00:39]} 19. Bxd7 {[%clk 0:02:09]} 1-0


[Site "https://www.chess.com"]

[Event "Titled Tuesday Blitz August 22 Early 2023"]
[White "Slovineanu, Viacheslav"]
[Black "Skiadopoulos, Nikolaos"]
[WhiteFideId "13900510"]
[BlackFideId "4200772"]
[WhiteElo "2374"]
[BlackElo "1814"]
[Result "1-0"]
[Round "5"]
[TimeControl "180+1"]
[Date "2023.08.22"]
[WhiteClock "0:00:10"]
[BlackClock "0:00:00"]
[Board "219"]

1. d4 {[%clk 0:02:56]}  Nf6 {[%clk 0:02:46]} 2. Nf3 {[%clk 0:02:55]}  g6 {[%clk 0:02:45]} 3. c4 {[%clk 0:02:54]}  c5 {[%clk 0:02:45]} 4. d5 {[%clk 0:02:54]}  b5 {[%clk 0:02:44]} 5. Nc3 {[%clk 0:02:38]}  b4 {[%clk 0:02:42]} 6. Nb1 {[%clk 0:02:35]}  Bg7 {[%clk 0:02:41]} 7. Bf4 {[%clk 0:02:28]}  d6 {[%clk 0:02:40]} 8. Nbd2 {[%clk 0:02:26]}  Nh5 {[%clk 0:02:34]} 9. Bg5 {[%clk 0:02:25]}  Bxb2 {[%clk 0:02:32]} 10. Rb1 {[%clk 0:02:23]}  Bg7 {[%clk 0:02:29]} 11. e4 {[%clk 0:02:22]}  O-O {[%clk 0:02:21]} 12. h3 {[%clk 0:02:19]}  a5 {[%clk 0:02:11]} 13. Bd3 {[%clk 0:02:19]}  Nd7 {[%clk 0:02:05]} 14. O-O {[%clk 0:02:16]}  Ne5 {[%clk 0:01:58]} 15. Bc2 {[%clk 0:02:04]}  Ba6 {[%clk 0:01:54]} 16. Nxe5 {[%clk 0:01:53]}  Bxe5 {[%clk 0:01:53]} 17. f4 {[%clk 0:01:53]}  Bd4+ {[%clk 0:01:49]} 18. Kh2 {[%clk 0:01:51]}  Bg7 {[%clk 0:01:41]} 19. Bd3 {[%clk 0:01:45]}  Nf6 {[%clk 0:01:17]} 20. Qe2 {[%clk 0:01:37]}  Nd7 {[%clk 0:01:14]} 21. Nf3 {[%clk 0:01:34]}  Rb8 {[%clk 0:00:53]} 22. e5 {[%clk 0:01:32]}  dxe5 {[%clk 0:00:45]} 23. fxe5 {[%clk 0:01:32]}  f6 {[%clk 0:00:43]} 24. Bh4 {[%clk 0:01:31]}  Nxe5 {[%clk 0:00:37]} 25. Nxe5 {[%clk 0:01:31]}  Qd6 {[%clk 0:00:33]} 26. Bg3 {[%clk 0:00:54]}  fxe5 {[%clk 0:00:32]} 27. Qc2 {[%clk 0:00:39]}  Rxf1 {[%clk 0:00:25]} 28. Rxf1 {[%clk 0:00:38]}  Rf8 {[%clk 0:00:25]} 29. Qa4 {[%clk 0:00:33]}  Qc7 {[%clk 0:00:19]} 30. Re1 {[%clk 0:00:25]}  Rf5 {[%clk 0:00:15]} 31. Bxf5 {[%clk 0:00:19]}  gxf5 {[%clk 0:00:15]} 32. Qe8+ {[%clk 0:00:20]}  Bf8 {[%clk 0:00:13]} 33. Bxe5 {[%clk 0:00:17]}  Qc8 {[%clk 0:00:13]} 34. Qh5 {[%clk 0:00:10]}  Bxc4 {[%clk 0:00:11]} 35. Re3 {[%clk 0:00:10]}  f4 {[%clk 0:00:00]} 36. Bxf4 {[%clk 0:00:10]} 1-0


[Site "https://www.chess.com"]

[Event "Titled Tuesday Blitz August 22 Early 2023"]
[White "Topalov, Aleksandar"]
[Black "Berezin, Viktor"]
[WhiteFideId "925659"]
[BlackFideId "14107872"]
[WhiteElo "2339"]
[BlackElo "2476"]
[Result "0-1"]
[Round "5"]
[TimeControl "180+1"]
[Date "2023.08.22"]
[WhiteClock "0:00:42"]
[BlackClock "0:01:26"]
[Board "221"]

1. b3 {[%clk 0:03:00]}  e5 {[%clk 0:02:53]} 2. Bb2 {[%clk 0:03:00]}  d6 {[%clk 0:02:53]} 3. d4 {[%clk 0:03:00]}  Nc6 {[%clk 0:02:52]} 4. Nf3 {[%clk 0:02:55]}  e4 {[%clk 0:02:51]} 5. d5 {[%clk 0:02:55]}  exf3 {[%clk 0:02:50]} 6. dxc6 {[%clk 0:02:55]}  bxc6 {[%clk 0:02:50]} 7. gxf3 {[%clk 0:02:52]}  Nf6 {[%clk 0:02:49]} 8. Rg1 {[%clk 0:02:51]}  Bf5 {[%clk 0:02:49]} 9. e4 {[%clk 0:02:50]}  Bg6 {[%clk 0:02:48]} 10. Nd2 {[%clk 0:02:48]}  Be7 {[%clk 0:02:47]} 11. Bd3 {[%clk 0:02:48]}  Nh5 {[%clk 0:02:45]} 12. f4 {[%clk 0:02:25]}  Nxf4 {[%clk 0:02:39]} 13. Bxg7 {[%clk 0:02:23]}  Rg8 {[%clk 0:02:37]} 14. Bb2 {[%clk 0:02:08]}  Bf6 {[%clk 0:02:23]} 15. Qc1 {[%clk 0:01:50]}  Qe7 {[%clk 0:02:06]} 16. Nc4 {[%clk 0:01:48]}  Bg5 {[%clk 0:01:40]} 17. Qd1 {[%clk 0:00:59]}  Bh5 {[%clk 0:01:38]} 18. Be2 {[%clk 0:00:42]}  Nxe2 {[%clk 0:01:26]} 0-1


[Site "https://www.chess.com"]

[Event "Titled Tuesday Blitz August 22 Early 2023"]
[White "Forgacs, Attila Jr."]
[Black "Shapiro, Daniel"]
[WhiteFideId "773654"]
[BlackFideId "2001780"]
[WhiteElo "2475"]
[BlackElo "2296"]
[Result "1-0"]
[Round "5"]
[TimeControl "180+1"]
[Date "2023.08.22"]
[WhiteClock "0:00:05"]
[BlackClock "0:00:00"]
[Board "222"]

1. e4 {[%clk 0:02:54]}  c5 {[%clk 0:02:59]} 2. Nf3 {[%clk 0:02:54]}  d6 {[%clk 0:02:59]} 3. d4 {[%clk 0:02:54]}  cxd4 {[%clk 0:02:59]} 4. Nxd4 {[%clk 0:02:55]}  Nf6 {[%clk 0:02:59]} 5. Nc3 {[%clk 0:02:56]}  Nc6 {[%clk 0:02:59]} 6. Bg5 {[%clk 0:02:55]}  Qb6 {[%clk 0:02:59]} 7. Ndb5 {[%clk 0:02:16]}  a6 {[%clk 0:02:38]} 8. Be3 {[%clk 0:02:15]}  Qa5 {[%clk 0:02:35]} 9. Na3 {[%clk 0:01:58]}  b5 {[%clk 0:02:22]} 10. Bd3 {[%clk 0:01:46]}  e6 {[%clk 0:02:18]} 11. O-O {[%clk 0:01:44]}  Qc7 {[%clk 0:02:11]} 12. Ne2 {[%clk 0:01:32]}  Bb7 {[%clk 0:02:10]} 13. f3 {[%clk 0:01:25]}  Be7 {[%clk 0:02:10]} 14. Rc1 {[%clk 0:01:25]}  b4 {[%clk 0:01:55]} 15. Nc4 {[%clk 0:01:23]}  O-O {[%clk 0:01:47]} 16. Bb6 {[%clk 0:01:19]}  Qb8 {[%clk 0:01:43]} 17. Nf4 {[%clk 0:01:10]}  Ne5 {[%clk 0:01:33]} 18. Nxe5 {[%clk 0:01:08]}  dxe5 {[%clk 0:01:33]} 19. Ne2 {[%clk 0:00:59]}  Bxe4 {[%clk 0:01:32]} 20. Bf2 {[%clk 0:00:52]}  Bd5 {[%clk 0:01:20]} 21. c4 {[%clk 0:00:50]}  Bc6 {[%clk 0:01:17]} 22. Bb1 {[%clk 0:00:42]}  Rd8 {[%clk 0:01:14]} 23. Qc2 {[%clk 0:00:42]}  g6 {[%clk 0:01:08]} 24. Ng3 {[%clk 0:00:42]}  Qb7 {[%clk 0:01:04]} 25. Rce1 {[%clk 0:00:37]}  Bd6 {[%clk 0:00:48]} 26. Be3 {[%clk 0:00:32]}  Nd7 {[%clk 0:00:38]} 27. Ne4 {[%clk 0:00:28]}  Be7 {[%clk 0:00:34]} 28. Rd1 {[%clk 0:00:20]}  Qc7 {[%clk 0:00:25]} 29. Ng5 {[%clk 0:00:12]}  Rac8 {[%clk 0:00:13]} 30. Kh1 {[%clk 0:00:12]}  a5 {[%clk 0:00:12]} 31. b3 {[%clk 0:00:12]}  a4 {[%clk 0:00:12]} 32. f4 {[%clk 0:00:13]}  axb3 {[%clk 0:00:12]} 33. axb3 {[%clk 0:00:13]}  exf4 {[%clk 0:00:10]} 34. Bxf4 {[%clk 0:00:14]}  e5 {[%clk 0:00:08]} 35. Be3 {[%clk 0:00:13]}  Nf6 {[%clk 0:00:03]} 36. Qf2 {[%clk 0:00:07]}  Rxd1 {[%clk 0:00:02]} 37. Rxd1 {[%clk 0:00:07]}  Rd8 {[%clk 0:00:03]} 38. Rf1 {[%clk 0:00:06]}  Rd6 {[%clk 0:00:02]} 39. Qh4 {[%clk 0:00:07]}  h5 {[%clk 0:00:01]} 40. Bc2 {[%clk 0:00:04]}  Ng4 {[%clk 0:00:02]} 41. Nxf7 {[%clk 0:00:03]}  Bxh4 {[%clk 0:00:01]} 42. Nxd6 {[%clk 0:00:02]}  Qxd6 {[%clk 0:00:01]} 43. Rd1 {[%clk 0:00:02]}  Qe7 {[%clk 0:00:02]} 44. Rd8+ {[%clk 0:00:03]}  Qxd8 {[%clk 0:00:02]} 45. Bxg6 {[%clk 0:00:04]}  Qe7 {[%clk 0:00:02]} 46. Bf7+ {[%clk 0:00:04]}  Qxf7 {[%clk 0:00:01]} 47. Bf4 {[%clk 0:00:05]}  Nf2+ {[%clk 0:00:00]} 48. Kg1 {[%clk 0:00:05]} 1-0


[Site "https://www.chess.com"]

[Event "Titled Tuesday Blitz August 22 Early 2023"]
[White "SergioMoralesG"]
[Black "Gyulamiryan-koryun"]
[WhiteElo "2414"]
[BlackElo "2036"]
[Result "1-0"]
[Round "5"]
[TimeControl "180+1"]
[Date "2023.08.22"]
[WhiteClock "0:00:45"]
[BlackClock "0:00:46"]
[Board "224"]

1. d4 {[%clk 0:03:00]}  Nf6 {[%clk 0:02:58]} 2. c4 {[%clk 0:03:00]}  e6 {[%clk 0:02:56]} 3. Nf3 {[%clk 0:02:59]}  d5 {[%clk 0:02:56]} 4. Nc3 {[%clk 0:02:59]}  Be7 {[%clk 0:02:54]} 5. Bf4 {[%clk 0:03:00]}  O-O {[%clk 0:02:50]} 6. e3 {[%clk 0:02:59]}  a6 {[%clk 0:02:44]} 7. Qc2 {[%clk 0:02:54]}  dxc4 {[%clk 0:02:42]} 8. Bxc4 {[%clk 0:02:55]}  b5 {[%clk 0:02:41]} 9. Bd3 {[%clk 0:02:53]}  Bb7 {[%clk 0:02:41]} 10. O-O {[%clk 0:02:51]}  Nbd7 {[%clk 0:02:36]} 11. a4 {[%clk 0:02:29]}  b4 {[%clk 0:02:34]} 12. Ne4 {[%clk 0:02:27]}  Nxe4 {[%clk 0:02:27]} 13. Bxe4 {[%clk 0:02:27]}  Bxe4 {[%clk 0:02:26]} 14. Qxe4 {[%clk 0:02:28]}  c5 {[%clk 0:02:22]} 15. Rac1 {[%clk 0:02:13]}  Nf6 {[%clk 0:02:17]} 16. Qc6 {[%clk 0:01:52]}  cxd4 {[%clk 0:02:09]} 17. Nxd4 {[%clk 0:01:49]}  Nd5 {[%clk 0:02:00]} 18. Rfd1 {[%clk 0:01:41]}  Qa5 {[%clk 0:01:49]} 19. Qb7 {[%clk 0:01:17]}  Rab8 {[%clk 0:01:29]} 20. Bxb8 {[%clk 0:01:15]}  Qxa4 {[%clk 0:01:22]} 21. Ra1 {[%clk 0:01:07]}  Qe8 {[%clk 0:01:14]} 22. Nc6 {[%clk 0:01:07]}  Bf6 {[%clk 0:01:08]} 23. Be5 {[%clk 0:00:56]}  Bg5 {[%clk 0:00:57]} 24. Rxa6 {[%clk 0:00:51]}  f6 {[%clk 0:00:56]} 25. Bd6 {[%clk 0:00:49]}  Rf7 {[%clk 0:00:46]} 26. Qa8 {[%clk 0:00:45]} 1-0


[Site "https://www.chess.com"]

[Event "Titled Tuesday Blitz August 22 Early 2023"]
[White "Schut, Han"]
[Black "Harriott, Tyrell"]
[WhiteFideId "1005561"]
[BlackFideId "2086484"]
[WhiteElo "2247"]
[BlackElo "2411"]
[Result "0-1"]
[Round "5"]
[TimeControl "180+1"]
[Date "2023.08.22"]
[WhiteClock "0:00:32"]
[BlackClock "0:00:47"]
[Board "225"]

1. e4 {[%clk 0:03:00]}  d5 {[%clk 0:02:59]} 2. exd5 {[%clk 0:02:58]}  Nf6 {[%clk 0:02:57]} 3. Bb5+ {[%clk 0:02:55]}  Nbd7 {[%clk 0:02:56]} 4. c4 {[%clk 0:02:54]}  g6 {[%clk 0:02:42]} 5. Nf3 {[%clk 0:02:51]}  Bg7 {[%clk 0:02:42]} 6. O-O {[%clk 0:02:41]}  O-O {[%clk 0:02:41]} 7. d4 {[%clk 0:02:40]}  Nb6 {[%clk 0:02:39]} 8. Nbd2 {[%clk 0:02:12]}  a6 {[%clk 0:02:36]} 9. Ba4 {[%clk 0:02:12]}  Nxa4 {[%clk 0:02:32]} 10. Qxa4 {[%clk 0:02:12]}  Bd7 {[%clk 0:02:29]} 11. Qb3 {[%clk 0:02:07]}  b5 {[%clk 0:02:25]} 12. c5 {[%clk 0:02:05]}  Bg4 {[%clk 0:02:18]} 13. a4 {[%clk 0:02:00]}  Qxd5 {[%clk 0:01:59]} 14. Qxd5 {[%clk 0:01:44]}  Nxd5 {[%clk 0:01:58]} 15. axb5 {[%clk 0:01:45]}  axb5 {[%clk 0:01:58]} 16. Rxa8 {[%clk 0:01:46]}  Rxa8 {[%clk 0:01:56]} 17. h3 {[%clk 0:01:47]}  Bf5 {[%clk 0:01:49]} 18. Re1 {[%clk 0:01:35]}  Ra1 {[%clk 0:01:42]} 19. Nb3 {[%clk 0:01:32]}  Rb1 {[%clk 0:01:39]} 20. Nfd2 {[%clk 0:01:28]}  Rxc1 {[%clk 0:01:19]} 21. Rxc1 {[%clk 0:01:29]}  c6 {[%clk 0:01:09]} 22. Ra1 {[%clk 0:01:25]}  h5 {[%clk 0:01:07]} 23. Ra6 {[%clk 0:01:18]}  Nb4 {[%clk 0:01:02]} 24. Ra7 {[%clk 0:01:15]}  Bf6 {[%clk 0:01:01]} 25. Na5 {[%clk 0:01:06]}  Bxd4 {[%clk 0:00:57]} 26. Nxc6 {[%clk 0:01:04]}  Nxc6 {[%clk 0:00:52]} 27. Ra6 {[%clk 0:00:38]}  Nb4 {[%clk 0:00:49]} 28. Ra8+ {[%clk 0:00:38]}  Kg7 {[%clk 0:00:48]} 29. Rc8 {[%clk 0:00:32]}  Bxc8 {[%clk 0:00:47]} 0-1


[Site "https://www.chess.com"]

[Event "Titled Tuesday Blitz August 22 Early 2023"]
[White "Orlov, Georgi"]
[Black "Sarkar, Justin"]
[WhiteFideId "2011271"]
[BlackFideId "2010011"]
[WhiteElo "2536"]
[BlackElo "2229"]
[Result "1-0"]
[Round "5"]
[TimeControl "180+1"]
[Date "2023.08.22"]
[WhiteClock "0:01:17"]
[BlackClock "0:00:00"]
[Board "228"]

1. d4 {[%clk 0:03:00]}  Nf6 {[%clk 0:02:17]} 2. Nf3 {[%clk 0:02:58]}  g6 {[%clk 0:02:15]} 3. c4 {[%clk 0:02:57]}  Bg7 {[%clk 0:02:15]} 4. Nc3 {[%clk 0:02:58]}  O-O {[%clk 0:02:12]} 5. e4 {[%clk 0:02:58]}  d6 {[%clk 0:02:11]} 6. Be2 {[%clk 0:02:59]}  e5 {[%clk 0:02:11]} 7. O-O {[%clk 0:02:59]}  Nbd7 {[%clk 0:02:06]} 8. Qc2 {[%clk 0:02:55]}  Re8 {[%clk 0:02:02]} 9. Rd1 {[%clk 0:02:55]}  exd4 {[%clk 0:01:54]} 10. Nxd4 {[%clk 0:02:54]}  Nc5 {[%clk 0:01:54]} 11. f3 {[%clk 0:02:52]}  a5 {[%clk 0:01:53]} 12. Be3 {[%clk 0:02:50]}  Bd7 {[%clk 0:01:50]} 13. Ndb5 {[%clk 0:02:48]}  h5 {[%clk 0:01:22]} 14. Bg5 {[%clk 0:02:38]}  Ne6 {[%clk 0:01:19]} 15. Bh4 {[%clk 0:02:33]}  g5 {[%clk 0:01:09]} 16. Bf2 {[%clk 0:02:32]}  g4 {[%clk 0:01:00]} 17. Bh4 {[%clk 0:02:23]}  Nf4 {[%clk 0:00:56]} 18. Bf1 {[%clk 0:02:11]}  gxf3 {[%clk 0:00:51]} 19. gxf3 {[%clk 0:02:11]}  Ng6 {[%clk 0:00:47]} 20. Bg5 {[%clk 0:02:10]}  Qc8 {[%clk 0:00:33]} 21. Bxf6 {[%clk 0:02:04]}  Bxf6 {[%clk 0:00:31]} 22. Nd5 {[%clk 0:02:04]}  Bd8 {[%clk 0:00:11]} 23. c5 {[%clk 0:01:48]}  dxc5 {[%clk 0:00:02]} 24. Qxc5 {[%clk 0:01:42]}  Bxb5 {[%clk 0:00:02]} 25. Bxb5 {[%clk 0:01:39]}  c6 {[%clk 0:00:02]} 26. Rac1 {[%clk 0:01:21]}  Qh3 {[%clk 0:00:00]} 27. Bf1 {[%clk 0:01:17]} 1-0


[Site "https://www.chess.com"]